Cogmind - Beta 17 @@@ ROGUE MODE // 2026.07.14 @ 11:17:43 Player: kite Result: Destroyed by G-50 Soldier with Heavy Laser Performance ------------- Evolutions (4) 2000 Regions Visited (13) 2600 Robots Destroyed (207) 1035 Value Destroyed (10365) 10365 Prototype IDs (26) 520 Alien Tech Used (0) 0 Bonus (6273) 6273 TOTAL SCORE: 22793 Bonus ------- Triggered High Security 500 High Alert Combat Kills 3959 Follower Combat Kills 914 Entered Garrisons 600 Aligned with FarCom 300 Cogmind --------- Core Integrity 0/850 Matter 220/300 Energy 99/100 System Corruption 13% Temperature Cool (9) Movement Core (50) Location -6/Factory Parts ------- > --- POWER (1) -------- (None) > --- PROPULSION (6) --- (None) > --- UTILITY (4) ------ (None) > --- WEAPON (4) ------- (None) > --- INVENTORY (5) ---- Long-range Terrain Scanner Modified TNC Graphene Brace Long-range Missile Launcher Remote Datajack Peak State ------------ > --- POWER ------------ Reinforced Deuterium Engine > --- PROPULSION ------- Light Treads Advanced Medium Treads Improved Heavy Treads Armored Heavy Treads > --- UTILITY ---------- Huge Storage Unit Machine Analyzer Powered Armor Graphene Brace > --- WEAPON ----------- Powered Hammer Powered Hammer Impact Mace Chainsword > --- INVENTORY -------- Light Antimatter Reactor Micro Antimatter Reactor Light Treads Light Treads Carbon-fiber Leg Flexi-carbon Leg Long-range Terrain Scanner Modified TNC Advanced Transmission Jammer Improved Light Armor Plating Improved Light Armor Plating EM Shield EM Shield Shield Generator Advanced Remote Force Field Dynamic Insulation System Heavy Shock Bomb Launcher Gamma Bomb Array Grenade Launcher Long-range Missile Launcher Long-range Missile Launcher Remote Datajack Plasma Cutter Impact Mace [Rating: 85] Favorites ----------- Power Improved Deuterium Engine Engine Improved Deuterium Engine Power Core Micro Nuclear Core Reactor Cold Fusion Reactor Propulsion Light Treads Treads Light Treads Leg Carbon-fiber Leg Utility Huge Storage Unit Device Microactuators Storage Huge Storage Unit Processor Machine Analyzer Hackware Hacking Suite Protection Improved Light Armor Plating Weapon Impact Mace Energy Gun Medium Laser Ballistic Gun Light Assault Rifle Launcher Mini Grenade Launcher Special Weapon Plasma Cutter Impact Weapon Impact Mace Slashing Weapon Chainsword Build | -11 -10 -10 -9 -9 -9 -8 -8 -8 -7 -7 -6 -6 -6 ------- Run | Yrd Mat Min Mat Min Exi Min Mat Gar Fac Gar Fac Gar Fac Slots Evolved 8 | . . . 2 . . . 2 . 2 . 2 . . Power . | . . . . . . . . . . . . . . Propulsion 4 | . . . 2 . . . 1 . 1 . . . . Utility 2 | . . . . . . . 1 . 1 . . . . Weapon 2 | . . . . . . . . . . . 2 . . Parts Attached 125 | 6 5 1 10 . . . 1 14 17 17 16 25 13 Power 13 | 1 . . 1 . . . . 2 2 2 2 1 2 Engine 8 | 1 . . 1 . . . . 1 1 2 1 1 . Core 2 | . . . . . . . . 1 1 . . . . Reactor 3 | . . . . . . . . . . . 1 . 2 Propulsion 43 | 2 . . 6 . . . . 5 6 8 3 9 4 Treads 41 | 2 . . 6 . . . . 5 6 8 3 8 3 Leg 2 | . . . . . . . . . . . . 1 1 Wheel . | . . . . . . . . . . . . . . Hover . | . . . . . . . . . . . . . . Flight . | . . . . . . . . . . . . . . Utility 48 | 1 2 1 1 . . . 1 5 7 7 9 8 6 Device 23 | . 2 . . . . . 1 1 4 4 4 4 3 Storage 6 | 1 . 1 . . . . . 1 1 . . 1 1 Processor 6 | . . . 1 . . . . 2 1 . 1 . 1 Hackware 1 | . . . . . . . . . . . 1 . . Protection 12 | . . . . . . . . 1 1 3 3 3 1 Artifact . | . . . . . . . . . . . . . . Weapon 21 | 2 3 . 2 . . . . 2 2 . 2 7 1 Energy Gun 1 | 1 . . . . . . . . . . . . . Energy Cannon . | . . . . . . . . . . . . . . Ballistic Gun 1 | 1 . . . . . . . . . . . . . Ballistic Cannon . | . . . . . . . . . . . . . . Launcher 4 | . 1 . . . . . . 1 . . . 1 1 Special Weapon 2 | . . . . . . . . 1 . . . 1 . Impact Weapon 9 | . 2 . 1 . . . . . 1 . 1 4 . Slashing Weapon 4 | . . . 1 . . . . . 1 . 1 1 . Piercing Weapon . | . . . . . . . . . . . . . . Special Melee Weapon . | . . . . . . . . . . . . . . Unidentified Prototypes 3 | . . . . . . . . . 1 . 2 . . Corrupted Parts 1 | . . . . . . . . . . . . 1 . System Corruption 3 | . . . . . . . . . . . . 3 . Parts Lost 48 | . . . 3 . . . . 5 1 7 5 16 11 Power 4 | . . . 1 . . . . 1 . 1 . . 1 Propulsion 26 | . . . 2 . . . . 2 1 4 3 9 5 Utility 12 | . . . . . . . . 2 . 2 2 3 3 Weapon 6 | . . . . . . . . . . . . 4 2 Highest Loss Streak 7 | . . . 3 . . . . 1 1 3 2 7 6 To Critical Strikes 1 | . . . . . . . . 1 . . . . . Average Backups 19 | 2 6 8 11 15 15 15 13 17 23 20 20 24 24 Power . | . 1 1 . . . . . . 1 . 1 1 . Propulsion 3 | 1 . . . 2 2 2 1 4 4 4 2 5 5 Utility 5 | . . . . 2 2 3 2 3 4 5 7 8 10 Weapon 8 | . 5 7 9 10 9 9 9 9 11 9 7 7 5 Tool/Special . | . . . . . . . . . . . . . . Unused Backups 51 | . 3 . 3 . 1 . . . 7 6 5 12 14 Power 7 | . . . . . . . . . . 3 2 2 . Propulsion 20 | . 2 . . . . . . . 1 . . 9 8 Utility 6 | . . . . . . . . . . 1 1 1 3 Weapon 17 | . 1 . 3 . 1 . . . 5 2 2 . 3 Tool/Special 1 | . . . . . . . . . 1 . . . . Average Slot Usage (%) 91 | . 91 100 85 100 100 100 96 98 99 94 84 81 90 Engine 5 | . 14 14 10 11 11 11 9 8 4 4 4 2 3 Reactor 1 | . . . . . . . . . . . 1 3 1 Treads 36 | . 28 28 31 44 44 44 45 44 45 40 31 24 31 Device 7 | . 6 14 2 . . . 6 7 15 10 6 5 5 Storage 7 | . 14 14 11 11 11 11 9 9 7 7 6 6 6 Processor 5 | . . . 8 11 11 11 9 7 5 . 5 6 5 Protection 4 | . . . . . . . . 2 . 11 5 6 5 Impact Weapon 10 | . 20 28 13 11 11 11 9 7 7 6 6 11 25 Slashing Weapon 7 | . . . 8 11 11 11 9 8 6 6 12 9 . Peak Build Rating 85 | 6 11 11 17 17 17 17 19 28 53 64 75 85 79 Average Rating 48 | 5 9 11 13 17 17 17 18 22 46 53 64 76 74 On Entrance 27 | . 6 11 11 17 17 17 17 19 28 52 54 74 68 Avg Prop Armor Cover (%) 8 | . . . . . . . . . 11 4 . 7 4 Naked Turns 7 | . . . . . . . . . . . . . 7 Heaviest Build 121 | 13 16 31 31 28 28 28 29 96 117 121 114 120 119 Greatest Support 198 | 40 46 46 83 83 83 83 103 110 146 181 190 198 160 Greatest Overweight (x) 1 | . . . 1 . . . . 1 1 1 . 1 1 Average Overweight (x) . | . . . . . . . . . . . . . . Largest Inventory Capacity 25 | 8 8 15 15 15 15 15 15 25 25 25 25 25 25 Average Capacity 22 | 7 8 14 15 15 15 15 15 24 25 25 25 25 24 Most Carried 25 | 4 8 8 15 15 15 15 14 21 25 25 25 25 25 Average Carried 21 | 2 6 8 11 15 14 15 13 17 24 24 24 24 24 Final Capacity 25 | 8 8 15 15 15 15 15 15 25 25 25 25 25 5 Final Carried 25 | 4 8 8 15 15 15 15 13 20 25 25 24 25 5 Class Distribution -------------------- 36% | Scavenger-Gladiator 20% | Scavenger-Mutant 17% | Mutant 14% | Gladiator 10% | Scavenger-Assassin Dominant Class ---------------- Mutant | -10/Materials Mutant | -10/Mines Scavenger-Gladiator | -9/Materials Scavenger-Gladiator | -9/Mines Scavenger-Gladiator | -9/Exiles Scavenger-Gladiator | -8/Mines Scavenger-Gladiator | -8/Materials Scavenger-Mutant | -8/Garrison Scavenger-Assassin | -7/Factory Gladiator | -7/Garrison Scavenger-Mutant | -6/Factory Scavenger-Gladiator | -6/Garrison Mutant | -6/Factory Resources | -11 -10 -10 -9 -9 -9 -8 -8 -8 -7 -7 -6 -6 -6 ----------- Run | Yrd Mat Min Mat Min Exi Min Mat Gar Fac Gar Fac Gar Fac Matter Collected 2645 | 176 115 89 60 40 . . . 412 337 549 272 473 122 Remotely . | . . . . . . . . . . . . . . Salvage Created 8929 | 46 190 40 955 145 . 47 . 901 532 2007 960 2176 930 Parts 326 | 4 13 . 33 . . . . 40 31 67 54 61 23 Haulers Intercepted 4 | . . . 1 . . . . . 2 . 1 . . Recyclers Shooed . | . . . . . . . . . . . . . . Parts Field Recycled . | . . . . . . . . . . . . . . Retrieved Matter . | . . . . . . . . . . . . . . Parts Self-Destructed . | . . . . . . . . . . . . . . Prevented . | . . . . . . . . . . . . . . Parts Restored . | . . . . . . . . . . . . . . Kills | -11 -10 -10 -9 -9 -9 -8 -8 -8 -7 -7 -6 -6 -6 ------- Run | Yrd Mat Min Mat Min Exi Min Mat Gar Fac Gar Fac Gar Fac Combat Hostiles Destroyed 156 | . 9 . 12 . . . . 22 12 34 11 39 17 Melee 79 | . 2 . 8 . . . . 8 7 17 7 23 7 AOE 30 | . 3 . . . . . . 8 5 10 . 4 . Classes Destroyed 19 | 1 4 . 6 . . . . 1 . 2 2 1 2 Worker 7 | . 1 1 4 . . . . . 1 . . . . Builder 15 | . 1 1 2 1 . 1 . . 1 . 7 . 1 Tunneler 6 | 2 . 1 . 2 . 1 . . . . . . . Hauler 4 | . . . 1 . . . . . 2 . 1 . . Recycler 7 | . 1 . 4 1 . . . . . . 1 . . Mechanic 6 | . . . 1 . . . . 1 1 2 1 . . Operator 3 | . . . 1 . . . . . . . 1 1 . Watcher 2 | . . . . . . . . . . . 1 1 . Swarmer 39 | . 9 . . . . . . 3 8 10 2 7 . Cutter 3 | . . . . . . . . . . 3 . . . Saboteur 1 | . . . . . . . . . . . . . 1 Grunt 66 | . . . 9 . . . . 16 . 12 4 19 6 Brawler 3 | . . . . . . . . . . . 1 . 2 Duelist 7 | . . . 1 . . . . . . 2 1 1 2 Sentry 21 | . . . 2 . . . . 2 2 5 . 9 1 Specialist 1 | . . . . . . . . . . . . 1 . Hunter 5 | . . . . . . . . . . 2 . . 3 Programmer 10 | . . . . . . . . 2 2 . 3 2 1 Behemoth 1 | . . . . . . . . . . . . . 1 Best Kill Streak 8 | 1 5 2 6 1 . 1 . 5 3 8 5 4 7 Combat Bots Only 8 | . 3 . 3 . . . . 5 3 8 4 4 7 Max Kills in Single Turn 4 | 1 2 1 1 1 . 1 . 3 3 4 1 3 1 Gunslinging . | . . . . . . . . . . . . . . Exploded 4 | . 2 . . . . . . 3 3 4 . 3 . Melee 1 | . 1 . 1 . . . . 1 1 1 1 1 1 Uniques/NPCs Destroyed . | . . . . . . . . . . . . . . Combat | -11 -10 -10 -9 -9 -9 -8 -8 -8 -7 -7 -6 -6 -6 -------- Run | Yrd Mat Min Mat Min Exi Min Mat Gar Fac Gar Fac Gar Fac Hostile Shots Fired 1423 | . 29 . 39 . . . . 76 136 274 81 484 304 Missed 419 | . 11 . 6 . . . . 16 50 75 17 149 95 Hits 1004 | . 18 . 33 . . . . 60 86 199 64 335 209 Melee 22 | . . . . . . . . . . 6 2 2 12 Projectile 982 | . 18 . 33 . . . . 60 86 193 62 333 197 AOE 3 | . . . . . . . . . 1 2 . . . Critical Strikes 32 | . . . . . . . . 3 . 2 2 8 17 Actively Blocked 1 | . . . . . . . . . . . . 1 . Part Disruptions 2 | . . . . . . . . . . . . 1 1 Damage Taken 12423 | . 152 . 371 . . . . 1151 1021 2119 1042 3444 3123 Core 1362 | . 19 . 31 . . . . 130 110 210 111 173 578 Absorbed by Shields 141 | . . . . . . . . . . 8 . 70 63 Reduced by Siege Mode 21 | . . . . . . . . . . 21 . . . Ignored by Resistances 371 | . . . . . . . . . 68 127 64 . 112 Core Remaining (%) 82 | 100 . 92 . . . 92 . 76 . 54 . . . Volleys Fired 41 | 10 4 . . . . . . 8 3 11 . 2 3 Largest 2 | 2 1 . . . . . . 2 1 2 . 2 1 Hottest 80 | 70 30 . . . . . . 60 30 60 . 73 80 Shots Fired 63 | 20 4 . . . . . . 14 3 14 . 4 4 Gun 20 | 20 . . . . . . . . . . . . . Cannon . | . . . . . . . . . . . . . . Launcher 42 | . 4 . . . . . . 14 3 13 . 4 4 Special 1 | . . . . . . . . . . 1 . . . Kinetic 10 | 10 . . . . . . . . . . . . . Thermal 11 | 10 . . . . . . . . . 1 . . . Explosive 38 | . 4 . . . . . . 14 3 13 . 4 . Electromagnetic 4 | . . . . . . . . . . . . . 4 Robot Hit Streak 6 | 5 2 . . . . . . 6 1 2 . 3 6 Robot Miss Streak 2 | 2 . . . . . . . . 1 1 . . 1 Penetration Max . | . . . . . . . . . . . . . . Secondary Targets . | . . . . . . . . . . . . . . Shots Hit Robots 478 | 10 13 3 40 6 . 4 . 52 30 98 54 123 45 Core Hits 186 | 2 4 . 11 . . 1 . 23 19 54 17 31 24 Critical Kills 12 | . . . 1 . . . . . . 3 . 5 3 Critical Parts Destroyed 52 | . 1 . 4 1 . 2 . 6 1 10 5 13 9 Critical Strikes 103 | . 1 . 5 1 . 2 . 9 5 26 9 33 12 Smash 65 | . 1 . 5 1 . 2 . 6 1 13 6 18 12 Sever 38 | . . . . . . . . 3 4 13 3 15 . Melee Attacks 788 | . 17 3 54 8 . 4 . 90 56 161 110 201 84 Impact 450 | . 17 3 41 5 . 2 . 52 9 90 25 122 84 Slashing 338 | . . . 13 3 . 2 . 38 47 71 85 79 . Piercing . | . . . . . . . . . . . . . . Sneak Attacks 64 | . 3 3 16 6 . 4 . 1 9 4 12 4 2 Combat Hostiles 5 | . . . . . . . . . 2 2 . 1 . Follow-up Attacks 103 | . 2 . 5 1 . 1 . 7 2 13 14 40 18 Damage Inflicted 25725 | 103 737 180 2235 463 . 273 . 2546 1722 6009 3261 5954 2242 Guns 103 | 103 . . . . . . . . . . . . . Cannons . | . . . . . . . . . . . . . . Explosions 2871 | . 159 . . . . . . 801 295 1034 . 340 242 Melee 22731 | . 578 180 2231 463 . 273 . 1745 1427 4959 3261 5614 2000 Ramming 20 | . . . 4 . . . . . . 16 . . . Kinetic 29 | 29 . . . . . . . . . . . . . Thermal 74 | 74 . . . . . . . . . . . . . Explosive 2629 | . 159 . . . . . . 801 295 1034 . 340 . Electromagnetic 242 | . . . . . . . . . . . . . 242 Impact 12676 | . 578 180 1769 399 . 139 . 1084 271 2200 1055 3001 2000 Slashing 10055 | . . . 462 64 . 134 . 661 1156 2759 2206 2613 . Piercing . | . . . . . . . . . . . . . . Highest Corruption 13 | . . . . . . . . 1 1 1 2 10 13 Average Corruption 2 | . . . . . . . . 1 1 1 1 4 10 Corruption Purged . | . . . . . . . . . . . . . . Corruption Blocked . | . . . . . . . . . . . . . . Effects 124 | . . . . . . . . 10 11 17 4 49 33 Message Errors 31 | . . . . . . . . 2 5 2 2 13 7 Matter Fused 31 | . . . . . . . . 2 3 6 1 14 5 Heat Flow Errors 13 | . . . . . . . . 2 . 2 1 5 3 Energy Discharges 17 | . . . . . . . . . 1 2 . 7 7 Parts Rejected 1 | . . . . . . . . . . 1 . . . Parts Fused 1 | . . . . . . . . . . . . 1 . Data Loss (minor) 19 | . . . . . . . . 4 1 3 . 6 5 Data Loss (major) 6 | . . . . . . . . . 1 1 . 2 2 Misfires 1 | . . . . . . . . . . . . . 1 Alerts 1 | . . . . . . . . . . . . . 1 Misdirections 3 | . . . . . . . . . . . . 1 2 Overload Shots . | . . . . . . . . . . . . . . Overflow Damage 5040 | . 251 88 674 279 . 181 . 299 279 627 664 979 719 Projectiles . | . . . . . . . . . . . . . . Explosions 135 | . 16 . . . . . . 10 . 24 . 85 . Melee 4905 | . 235 88 674 279 . 181 . 289 279 603 664 894 719 Knockbacks 47 | . 1 1 6 4 . . . 4 . 7 8 5 11 Impact 46 | . 1 1 6 4 . . . 4 . 7 8 5 10 Kinetic . | . . . . . . . . . . . . . . Secondary 1 | . . . . . . . . . . . . . 1 Self-Inflicted Damage 124 | . . . . . . . . 77 27 . . . 20 Shots 5 | . . . . . . . . 2 1 . . . 2 Rammed 1 | . . . 1 . . . . . . . . . . Targets Rammed 2 | . . . 1 . . . . . . 1 . . . Kicked . | . . . . . . . . . . . . . . Crushed 1 | . . . . . . . . . . 1 . . . Highest Temperature 248 | 60 . . . . . . . 222 . 248 149 232 248 Average Temperature 72 | 26 . . . . . . . 47 . 120 72 79 80 Received Heat Transfer 3279 | . . . 198 . . . . 468 228 492 219 1044 630 Siege Activations 4 | . . . . . . . . . . 3 1 . . Total Turns 27 | . . . . . . . . . . 26 1 . . Longest Duration 18 | . . . . . . . . . . 18 1 . . Martial Activations . | . . . . . . . . . . . . . . Shielding Activations . | . . . . . . . . . . . . . . Robots Disrupted . | . . . . . . . . . . . . . . Combat Hostiles . | . . . . . . . . . . . . . . Robots Corrupted 60 | . 5 2 7 3 . . . 6 2 8 4 13 10 Combat Hostiles 47 | . 4 . 4 . . . . 6 . 7 4 12 10 Parts Fried 87 | . 5 8 17 7 . 5 . 5 1 9 3 14 13 Impact Corruptions 145 | . 11 4 18 8 . 3 . 11 5 21 11 31 22 Robots Melted . | . . . . . . . . . . . . . . Combat Hostiles . | . . . . . . . . . . . . . . Parts Melted 1 | . . . . . . . . . . . . 1 . Heat Transferred 222 | 222 . . . . . . . . . . . . . Parts Sabotaged . | . . . . . . . . . . . . . . Parts Stolen . | . . . . . . . . . . . . . . Parts Stripped . | . . . . . . . . . . . . . . Power Chain Reactions . | . . . . . . . . . . . . . . Alert | -11 -10 -10 -9 -9 -9 -8 -8 -8 -7 -7 -6 -6 -6 ------- Run | Yrd Mat Min Mat Min Exi Min Mat Gar Fac Gar Fac Gar Fac Maximum Alert Level 5 | . . . . . . . . 4 3 5 4 5 5 Low Security (%) 16 | 100 100 100 100 100 . 100 100 8 . . . . . Level 1 7 | . . . . . . . . 13 38 2 . . . Level 2 12 | . . . . . . . . 11 59 20 . . . Level 3 25 | . . . . . . . . 48 1 23 90 13 . Level 4 11 | . . . . . . . . 17 . 23 9 11 8 Level 5 25 | . . . . . . . . . . 30 . 74 62 High Security 2 | . . . . . . . . . . . . . 29 Max Security . | . . . . . . . . . . . . . . Peak Influence 3528 | 5 166 48 180 52 . 5 . 1444 758 2196 1152 3528 1963 Initial 1852 | . . 48 . 52 . . . 2 758 389 1152 753 1852 Average 1072 | . 91 10 89 6 . . . 772 420 1202 1014 2092 1761 Influence Increases 9139 | 10 256 15 432 20 . 10 4 1555 867 1897 585 2955 533 Destroy 0b10 Robot/C 3660 | . 180 . 240 . . . . 660 460 700 240 840 340 Destroy 0b10 Robot/NC 300 | 10 15 15 65 20 . 10 . 5 30 45 65 15 5 Destroy Leader 444 | . 30 . 72 . . . . 20 116 40 56 50 60 Allied During Kill 222 | . . . . . . . . 67 112 1 6 36 . Successful Hack 136 | . . . 7 . . . 4 30 17 30 6 28 14 Disable Machine 345 | . . . . . . . . 90 90 30 45 75 15 Anti-Garrison Action 2550 | . . . . . . . . 600 . 850 . 1100 . Destroy Structure 462 | . 16 . 3 . . . . 83 42 126 32 136 24 Lose Combat Pursuer 1020 | . 15 . 45 . . . . . . 75 135 675 75 Influence Decreases 7226 | 10 130 141 297 155 . 10 . 115 1754 258 1705 503 2148 Entered New Map 4060 | . . 78 . 83 . . . 2 686 168 1044 323 1676 Time Decay 1993 | 10 130 63 267 72 . 10 . . 568 . 571 . 302 Lost Part 480 | . . . 30 . . . . 50 10 70 50 160 110 Lost Ally 243 | . . . . . . . . 63 40 20 40 20 60 Purge Threat 450 | . . . . . . . . . 450 . . . . Squads Dispatched 30 | . . . 3 . . . . . 7 . 8 . 12 Investigation 3 | . . . 2 . . . . . 1 . . . . Extermination 8 | . . . . . . . . . 3 . 4 . 1 Reinforcement 3 | . . . 1 . . . . . 1 . 1 . . Assault 15 | . . . . . . . . . 2 . 3 . 10 Garrison 1 | . . . . . . . . . . . . . 1 Intercept . | . . . . . . . . . . . . . . Searches Triggered . | . . . . . . . . . . . . . . Construction Impeded . | . . . . . . . . . . . . . . Haulers Reinforced 1 | . . . . . . . . . 1 . . . . Active Scanning Responses . | . . . . . . . . . . . . . . Cargo Convoy Interrupts . | . . . . . . . . . . . . . . Stealth | -11 -10 -10 -9 -9 -9 -8 -8 -8 -7 -7 -6 -6 -6 --------- Run | Yrd Mat Min Mat Min Exi Min Mat Gar Fac Gar Fac Gar Fac Distress Signals 5 | . . . 2 . . . . . 1 . 1 . 1 Communications Jammed . | . . . . . . . . . . . . . . Distress Signals . | . . . . . . . . . . . . . . Times Spotted 267 | . 12 . 16 . . . . 30 17 37 27 76 52 Peak Tracking Total 21 | . 3 . 4 . . . . 3 4 6 5 6 21 Tactical Retreats 46 | . 1 . 3 . . . . . . 3 8 29 2 Traps | -11 -10 -10 -9 -9 -9 -8 -8 -8 -7 -7 -6 -6 -6 ------- Run | Yrd Mat Min Mat Min Exi Min Mat Gar Fac Gar Fac Gar Fac Traps Triggered 12 | . . . . . . . . 2 2 4 . 4 . Indirectly . | . . . . . . . . . . . . . . Trap Hack Attempts . | . . . . . . . . . . . . . . Triggered . | . . . . . . . . . . . . . . Disarmed . | . . . . . . . . . . . . . . Reprogrammed . | . . . . . . . . . . . . . . Reused . | . . . . . . . . . . . . . . Traps Extracted . | . . . . . . . . . . . . . . Installed . | . . . . . . . . . . . . . . Triggered . | . . . . . . . . . . . . . . Machines | -11 -10 -10 -9 -9 -9 -8 -8 -8 -7 -7 -6 -6 -6 ---------- Run | Yrd Mat Min Mat Min Exi Min Mat Gar Fac Gar Fac Gar Fac Machines Disabled 39 | . . . . . . . . 13 6 6 3 10 1 Max in Single Turn 2 | . . . . . . . . 2 . 1 1 1 1 Garrison Relay 14 | . . . . . . . . 5 . 4 . 5 . Phase Generator 1 | . . . . . . . . 1 . . . . . Machines Repaired . | . . . . . . . . . . . . . . Machines Dismantled 4 | . . . . . . . . 1 . 2 . 1 . Machines Sabotaged . | . . . . . . . . . . . . . . Overloaded Fab Kills . | . . . . . . . . . . . . . . Hacking | -11 -10 -10 -9 -9 -9 -8 -8 -8 -7 -7 -6 -6 -6 --------- Run | Yrd Mat Min Mat Min Exi Min Mat Gar Fac Gar Fac Gar Fac Machines Accessed 21 | . 1 . 3 . 2 . 1 3 3 3 2 2 1 Terminals 15 | . 1 . 3 . . . . 3 2 3 . 2 1 Fabricators . | . . . . . . . . . . . . . . Repair Stations . | . . . . . . . . . . . . . . Recycling Units . | . . . . . . . . . . . . . . Scanalyzers 1 | . . . . . . . . . . . 1 . . Garrison Access 3 | . . . . . . . 1 . 1 . 1 . . Total Hacks 53 | . 3 . 10 . 5 . 2 6 10 6 5 4 2 Successful 23 | . . . 1 . 5 . 1 2 5 2 4 2 1 Failed 29 | . 3 . 9 . . . 1 4 5 4 . 2 1 Catastrophic 8 | . 1 . 2 . . . . 1 1 2 . 1 . Database Lockouts 1 | . . . . . . . . . . . 1 . . Manual 20 | . 3 . 10 . 1 . . . 2 . . 2 2 Terminals 37 | . 3 . 10 . . . . 6 6 6 . 4 2 Fabricators . | . . . . . . . . . . . . . . Repair Stations . | . . . . . . . . . . . . . . Recycling Units . | . . . . . . . . . . . . . . Scanalyzers 4 | . . . . . . . . . . . 4 . . Garrison Access 7 | . . . . . . . 2 . 4 . 1 . . Terminal Hacks 16 | . . . 1 . 5 . . 2 3 2 . 2 1 Record 4 | . . . . . 4 . . . . . . . . Part Schematic 1 | . . . 1 . . . . . . . . . . Emergency Access Points 2 | . . . . . . . . . . 1 . 1 . Unreport Threat 3 | . . . . . . . . . 3 . . . . Zone Layout 1 | . . . . . . . . . . . . . 1 Patrol Navigation 2 | . . . . . . . . 1 . . . 1 . Security Stations 2 | . . . . . . . . 1 . 1 . . . Proto ID Catalog 1 | . . . . . 1 . . . . . . . . Fabricator Hacks . | . . . . . . . . . . . . . . Repair Station Hacks . | . . . . . . . . . . . . . . Recycling Unit Hacks . | . . . . . . . . . . . . . . Scanalyzer 3 | . . . . . . . . . . . 3 . . Insert Component 1 | . . . . . . . . . . . 1 . . Analyze 1 | . . . . . . . . . . . 1 . . Retrieve Study 1 | . . . . . . . . . . . 1 . . Garrison Access Hacks 3 | . . . . . . . 1 . 1 . 1 . . Unlock Access 3 | . . . . . . . 1 . 1 . 1 . . Unauthorized Hacks 1 | . . . . . . . . . 1 . . . . Terminals 1 | . . . . . . . . . 1 . . . . Botnet 1 | . . . . . . . . . 1 . . . . Fabricators . | . . . . . . . . . . . . . . Repair Stations . | . . . . . . . . . . . . . . Recycling Units . | . . . . . . . . . . . . . . Scanalyzers . | . . . . . . . . . . . . . . Garrison Access . | . . . . . . . . . . . . . . Data Cores Recovered . | . . . . . . . . . . . . . . Used . | . . . . . . . . . . . . . . Hacking Detections 13 | . 1 . 3 . . . . 3 3 2 . 1 . Full Trace Events 8 | . 1 . 2 . . . . 2 1 1 . 1 . Feedback Events . | . . . . . . . . . . . . . . Feedback Blocked . | . . . . . . . . . . . . . . Robot Schematics Acquired . | . . . . . . . . . . . . . . Robots Built . | . . . . . . . . . . . . . . Authchips . | . . . . . . . . . . . . . . Time . | . . . . . . . . . . . . . . Total Robot Build Rating . | . . . . . . . . . . . . . . Part Schematics Acquired 2 | . . . 1 . . . . . . . 1 . . Parts Built . | . . . . . . . . . . . . . . Authchips . | . . . . . . . . . . . . . . Time . | . . . . . . . . . . . . . . Total Part Build Rating . | . . . . . . . . . . . . . . Part Studies Acquired 1 | . . . . . . . . . . . 1 . . Parts Repaired . | . . . . . . . . . . . . . . Time . | . . . . . . . . . . . . . . Parts Recycled . | . . . . . . . . . . . . . . Recycled Matter . | . . . . . . . . . . . . . . Retrieved Matter . | . . . . . . . . . . . . . . Retrieved Components . | . . . . . . . . . . . . . . Parts Scanalyzed 1 | . . . . . . . . . . . 1 . . Part Schematics Acquired 1 | . . . . . . . . . . . 1 . . Parts Damaged . | . . . . . . . . . . . . . . Bothacking | -11 -10 -10 -9 -9 -9 -8 -8 -8 -7 -7 -6 -6 -6 ------------ Run | Yrd Mat Min Mat Min Exi Min Mat Gar Fac Gar Fac Gar Fac Used RIF Installer . | . . . . . . . . . . . . . . Robots Hacked . | . . . . . . . . . . . . . . Non-combat . | . . . . . . . . . . . . . . Combat . | . . . . . . . . . . . . . . Robot Hacks Applied . | . . . . . . . . . . . . . . Relay Couplers Released 55 | . . . . . . . . 19 . 17 . 19 . Machine Destruction 55 | . . . . . . . . 19 . 17 . 19 . Fabnet Peak Effective % . | . . . . . . . . . . . . . . Robots Rewired 9 | . . . . . . . . 5 . 1 . 3 . Allies Hacked . | . . . . . . . . . . . . . . Hacks Repelled . | . . . . . . . . . . . . . . Allies | -11 -10 -10 -9 -9 -9 -8 -8 -8 -7 -7 -6 -6 -6 -------- Run | Yrd Mat Min Mat Min Exi Min Mat Gar Fac Gar Fac Gar Fac Total Allies 18 | . . . . 3 . . . 7 . 3 . 5 . Largest Group 5 | . . . . 3 3 3 3 5 5 2 2 5 4 Highest-Rated Group 174 | . . . . 40 40 40 40 126 126 62 62 174 144 Highest-Rated Ally 46 | . . . . 16 16 16 16 39 39 31 31 46 46 Initial Warlord ECA Mod 28 | . . . . . . . . . 11 11 18 18 28 Total Orders . | . . . . . . . . . . . . . . Ally Attacks 144 | . . . . . . . . 60 44 1 16 15 8 Total Damage 2965 | . . . . . . . . 786 1321 17 169 440 232 Kills 34 | . . . . . . . . 11 16 1 2 3 1 Allies Corrupted . | . . . . . . . . . . . . . . Allies Melted . | . . . . . . . . . . . . . . Intel | -11 -10 -10 -9 -9 -9 -8 -8 -8 -7 -7 -6 -6 -6 ------- Run | Yrd Mat Min Mat Min Exi Min Mat Gar Fac Gar Fac Gar Fac Active Infowar (turns) 7521 | . . . . . . . 14 170 1700 494 1736 2880 527 IFF 1 | . . . . . . . . . . . 1 . . Structural 2591 | . . . . . . . 14 170 1409 488 510 . . Machine Analysis 6267 | . . . . . . . . . 1219 . 1644 2880 524 Jamming 2016 | . . . . . . . . . 1511 6 345 . 154 Robot Analysis Total . | . . . . . . . . . . . . . . Derelict Logs Recovered . | . . . . . . . . . . . . . . Drone Launches . | . . . . . . . . . . . . . . Drone Recoveries . | . . . . . . . . . . . . . . Exploration | -11 -10 -10 -9 -9 -9 -8 -8 -8 -7 -7 -6 -6 -6 ------------- Run | Yrd Mat Min Mat Min Exi Min Mat Gar Fac Gar Fac Gar Fac Turns Passed 14270 | 115 309 283 663 551 396 138 15 1947 1706 2578 1736 2880 953 Spaces Moved 6865 | 50 150 85 280 334 244 80 8 964 892 1255 766 1311 446 Core 15 | 4 . . . . . . . . . . . . 11 Treads 6850 | 46 150 85 280 334 244 80 8 964 892 1255 766 1311 435 Legs . | . . . . . . . . . . . . . . Wheels . | . . . . . . . . . . . . . . Hover . | . . . . . . . . . . . . . . Flight . | . . . . . . . . . . . . . . Fastest Speed 50 | 50 160 160 160 160 160 160 160 160 160 160 160 155 50 Average Speed 160 | 151 160 160 160 160 160 160 160 160 162 160 160 160 158 Slowest Speed 250 | 160 160 160 240 160 160 160 160 240 240 240 160 240 250 Overloaded Moves . | . . . . . . . . . . . . . . Propulsion Burnouts . | . . . . . . . . . . . . . . Robots Hopped . | . . . . . . . . . . . . . . Potential Cave-ins . | . . . . . . . . . . . . . . Cave-ins Triggered . | . . . . . . . . . . . . . . Exploration Rate (%) 44 | 4 28 30 26 83 60 26 2 97 29 93 27 96 15 Regions Visited 13 Branch Regions 4 Pre-discovered Areas 1 | . . . . . 1 . . . . . . . . Known Exits Taken 3 | . . . . . . . 1 . 1 . 1 . . Unknown Exits Taken 7 | 1 1 1 1 1 1 1 . . . . . . . Scrap Searched 4 | . . 2 . 2 . . . . . . . . . Spaces Dug 111 | . . . 1 . . . . 10 19 14 31 12 24 Terrain Destroyed 237 | . 14 . 1 . . . . 90 34 27 31 16 24 Melee 111 | . . . 1 . . . . 10 19 14 31 12 24 Projectile . | . . . . . . . . . . . . . . AOE 126 | . 14 . . . . . . 80 15 13 . 4 . Terrain Rammed . | . . . . . . . . . . . . . . Walls Destroyed . | . . . . . . . . . . . . . . Machines Disabled . | . . . . . . . . . . . . . . Actions | -11 -10 -10 -9 -9 -9 -8 -8 -8 -7 -7 -6 -6 -6 --------- Run | Yrd Mat Min Mat Min Exi Min Mat Gar Fac Gar Fac Gar Fac Total 9033 | 69 191 227 412 341 250 85 10 1188 1081 1641 1111 1841 586 Wait 927 | . 3 138 61 3 5 3 . 58 61 127 193 235 40 Move 6852 | 49 149 84 279 333 243 79 8 963 892 1252 766 1309 446 Hop . | . . . . . . . . . . . . . . Pick Up 122 | 4 8 . 10 . 1 . . 4 16 17 16 35 11 Fast Attach 50 | 6 3 . 5 . . . . 3 7 5 9 10 2 Attach 40 | . . . 1 . . . 2 3 2 7 5 14 6 Detach 7 | . . . . . . . . 1 2 1 . 2 1 Swap 112 | . 3 1 4 . . . . 20 21 28 14 12 9 Drop 119 | . 7 1 6 . 1 . . 1 24 26 20 26 7 Fire 41 | 10 4 . . . . . . 8 3 11 . 2 3 Melee 651 | . 14 3 45 5 . 3 . 82 53 145 88 152 61 Ram . | . . . . . . . . . . . . . . Kick . | . . . . . . . . . . . . . . Crush 2 | . . . 1 . . . . . . 1 . . . Escape Stasis 3 | . . . . . . . . 1 . 2 . . . Rewire 80 | . . . . . . . . 36 . 8 . 36 . Trap . | . . . . . . . . . . . . . . Miscellaneous 27 | . . . . . . . . 8 . 11 . 8 . Route ------- -11/Scrapyard -10/Materials -10/Mines -9/Materials -9/Mines (discovered 2 exits: *Mat / *Exi) -9/Exiles -8/Mines -8/Materials -8/Garrison (discovered 3 exits: *Fac x3) -7/Factory -7/Garrison (discovered 3 exits: *Fac x3) -6/Factory (discovered 2 exits: [*Fac] / Gar) -6/Garrison (discovered 3 exits: *Fac x3) -6/Factory History --------- Turn | Location | Event 11 | -11/Scrapyard | Discovered new exit (range 16) 116 | -11/Scrapyard | Entered Materials 306 | -10/Materials | Build established: Mutant 380 | -10/Materials | Discovered new exit (range 10) 425 | -10/Materials | Entered Mines 454 | -10/Mines | Assembled infested the area 634 | -10/Mines | A weapon hastily lodged in a ceiling crevice suddenly fell to the ground 686 | -10/Mines | Discovered new exit (range 7) 708 | -10/Mines | Entered Materials 708 | -9/Materials | Evolved 2 slots: Propulsion x2 992 | -9/Materials | Lost 3 parts (1p2n) 1274 | -9/Materials | Discovered new exit (range 16) 1282 | -9/Materials | Build established: Scavenger-Gladiator 1371 | -9/Materials | Entered Mines 1667 | -9/Mines | Discovered new exit (range 10) 1714 | -9/Mines | Found a damaged Exp. Sensor Array with a note attached 1799 | -9/Mines | Assisted by bots powering up and referring to "LRC-V3" 1912 | -9/Mines | Deemed a non-threat by the Exiles lab entrance 1912 | -9/Mines | Discovered new exit (range 5) 1922 | -9/Mines | Entered Exiles 1922 | -9/Exiles | Accompanied by 3 allies 1962 | -9/Exiles | Met 8R-AWN 1990 | -9/Exiles | Met EX-HEX 2052 | -9/Exiles | Met EX-DEC 2060 | -9/Exiles | Learned location of Zion (-6) 2090 | -9/Exiles | Met EX-BIN 2113 | -9/Exiles | Aligned with FarCom system 2114 | -9/Exiles | Given EX-Vault access code 2151 | -9/Exiles | Opened EX-Vault 2165 | -9/Exiles | Found Modified TNC 2198 | -9/Exiles | Warned to stay clear of 0b10 Research branches 2218 | -9/Exiles | Exiles lab attacked by MAIN.C 2297 | -9/Exiles | Discovered new exit (range 12) 2318 | -9/Exiles | Left Exiles lab with Modified TNC 2318 | -9/Exiles | Entered Mines 2318 | -8/Mines | Accompanied by 3 allies 2431 | -8/Mines | Discovered new exit (range 9) 2456 | -8/Mines | Entered Materials 2456 | -8/Materials | Accompanied by 3 allies 2456 | -8/Materials | Evolved 2 slots: Propulsion x1, Utility x1 2471 | -8/Materials | Identified exit to Garrison 2471 | -8/Materials | Entered Garrison 2471 | -8/Garrison | Accompanied by 3 allies 2587 | -8/Garrison | Triggered checkpoint 2784 | -8/Garrison | Garrison Relay disabled 2887 | -8/Garrison | Triggered checkpoint 2920 | -8/Garrison | Triggered checkpoint 2929 | -8/Garrison | Triggered checkpoint 3031 | -8/Garrison | Triggered checkpoint 3094 | -8/Garrison | Garrison Relay disabled 3122 | -8/Garrison | Phase Generator disabled 3144 | -8/Garrison | Learned Factory security intel 3204 | -8/Garrison | Discovered new exit (range 11) 3209 | -8/Garrison | Build established: Scavenger-Mutant 3545 | -8/Garrison | Discovered new exit (range 15) 3677 | -8/Garrison | Triggered checkpoint 3694 | -8/Garrison | Garrison Relay disabled 3938 | -8/Garrison | Discovered new exit (range 10) 4044 | -8/Garrison | Triggered checkpoint 4069 | -8/Garrison | Garrison Relay disabled 4107 | -8/Garrison | Rescued a captive Derelict 4107 | -8/Garrison | Rescued a captive Derelict 4249 | -8/Garrison | Triggered checkpoint 4271 | -8/Garrison | Triggered checkpoint 4295 | -8/Garrison | Garrison Relay disabled 4418 | -8/Garrison | Entered Factory 4418 | -7/Factory | Accompanied by 5 allies 4418 | -7/Factory | Evolved 2 slots: Propulsion x1, Utility x1 4730 | -7/Factory | Allied Derelicts emerged from ambush trap array 4810 | -7/Factory | Build established: Scavenger-Assassin 5218 | -7/Factory | First assault squad dispatched 6124 | -7/Factory | Identified exit to Garrison 6124 | -7/Factory | Entered Garrison 6132 | -7/Garrison | Triggered checkpoint 6174 | -7/Garrison | Triggered checkpoint 6181 | -7/Garrison | Garrison Relay disabled 6321 | -7/Garrison | Build established: Gladiator 6498 | -7/Garrison | Triggered checkpoint 6616 | -7/Garrison | Triggered checkpoint 6708 | -7/Garrison | Garrison Relay disabled 6718 | -7/Garrison | Learned Factory security intel 6804 | -7/Garrison | Discovered new exit (range 11) 7012 | -7/Garrison | Build established: Scavenger-Gladiator 7088 | -7/Garrison | Triggered checkpoint 7225 | -7/Garrison | Garrison Relay disabled 7286 | -7/Garrison | Triggered checkpoint 7320 | -7/Garrison | Discovered new exit (range 15) 7462 | -7/Garrison | Build established: Gladiator 7540 | -7/Garrison | Triggered checkpoint 7571 | -7/Garrison | Destroyed 8 combat bots 7716 | -7/Garrison | Triggered checkpoint 7831 | -7/Garrison | Lost 3 parts (2n1u) 8032 | -7/Garrison | Discovered new exit (range 11) 8153 | -7/Garrison | Rescued a captive Derelict 8154 | -7/Garrison | Rescued a captive Derelict 8175 | -7/Garrison | Garrison Relay disabled 8380 | -7/Garrison | Attempted to access garrison exit controls, blocked by remote lockdown 8543 | -7/Garrison | Build established: Scavenger-Gladiator 8560 | -7/Garrison | Attempted to access garrison exit controls, blocked by remote lockdown 8702 | -7/Garrison | Entered Factory 8702 | -6/Factory | Accompanied by 2 allies 8702 | -6/Factory | Evolved 2 slots: Weapon x2 9270 | -6/Factory | Central database locked down 9402 | -6/Factory | First assault squad dispatched 9931 | -6/Factory | Discovered new exit (range 7) 10191 | -6/Factory | Build established: Scavenger-Mutant 10279 | -6/Factory | Found Powered Armor 10284 | -6/Factory | Found Powered Armor 10288 | -6/Factory | Found Powered Armor 10438 | -6/Factory | Identified exit to Garrison 10438 | -6/Factory | Entered Garrison 10554 | -6/Garrison | Triggered checkpoint 10583 | -6/Garrison | Heavy support dispatched to Factory 10596 | -6/Garrison | Garrison Relay disabled 10731 | -6/Garrison | Build established: Scavenger-Gladiator 10760 | -6/Garrison | Heavy support dispatched to Factory 10850 | -6/Garrison | Triggered checkpoint 10856 | -6/Garrison | Triggered checkpoint 10904 | -6/Garrison | Triggered checkpoint 11172 | -6/Garrison | Discovered new exit (range 10) 11300 | -6/Garrison | Triggered checkpoint 11342 | -6/Garrison | Garrison Relay disabled 11620 | -6/Garrison | Triggered checkpoint 11671 | -6/Garrison | Discovered new exit (range 10) 11734 | -6/Garrison | Heavy support dispatched to Factory 11778 | -6/Garrison | Triggered checkpoint 11794 | -6/Garrison | Garrison Relay disabled 11966 | -6/Garrison | Triggered checkpoint 12069 | -6/Garrison | H-XX Assembler disabled 12245 | -6/Garrison | Garrison Relay disabled 12273 | -6/Garrison | Build established: Scavenger-Mutant 12277 | -6/Garrison | Discovered new exit (range 9) 12357 | -6/Garrison | Lost 7 parts (5n1u1w) 12371 | -6/Garrison | Found Gamma Bomb Array 12675 | -6/Garrison | Attempted to access garrison exit controls, blocked by remote lockdown 12767 | -6/Garrison | Build established: Mutant 13022 | -6/Garrison | Triggered checkpoint 13052 | -6/Garrison | Triggered checkpoint 13078 | -6/Garrison | System corruption reached 10% 13091 | -6/Garrison | Garrison Relay disabled 13186 | -6/Garrison | Rescued a captive Derelict 13187 | -6/Garrison | Rescued a captive Derelict 13318 | -6/Garrison | Entered Factory 13318 | -6/Factory | Accompanied by 4 allies 13668 | -6/Factory | First assault squad dispatched 13777 | -6/Factory | Lost 4 allies 13789 | -6/Factory | Spotted B-75 Beast 13912 | -6/Factory | Destroyed B-75 Beast 13933 | -6/Factory | Destroyed 7 combat bots 13992 | -6/Factory | High security lockdown imminent 14072 | -6/Factory | High security lockdown engaged 14213 | -6/Factory | Garrison activated, responded to threat 14264 | -6/Factory | Released all parts (9) 14266 | -6/Factory | Core integrity fell below 50% 14269 | -6/Factory | Core integrity fell below 20% 14271 | -6/Factory | Destroyed by G-50 Soldier with Heavy Laser Last Messages --------------- 14264_ Released Huge Storage Unit. 14264_ Released Powered Hammer. 14264_ Released Arm. Heavy Treads. 14264_ Released Imp. Medium Treads. 14264_ Released Mic. Antimatter Reactor. 14264_ Released EM Shield. 14264_ Dropped Corrupted Imp. Medium Treads. 14265_ Penetrated by Slug. 14265_ Slug penetrates H-66 Slayer. 14265_ Extracted 2 energy. 14266_ Penetrated by Slug. 14266_ Acquired Modified TNC. 14268_ Slug penetrates Wall. 14268_ Slug penetrates Construction Platform. 14268_ C-45 Heavy ARC bursts open, deploying its payload. 14268_ G-67 Veteran unfolds itself. 14268_ G-50 Soldier unfolds itself. 14268_ L-41 Fighter unfolds itself. 14268_ M-28 Smith unfolds itself. Map ----- +----------------------------------------------------+ | ?????????????????????????????????????############# | | ?????????????????????????????????????# | | ?????????????????????????????????????# | | ????????????????????????###########??# | | ????????????????????????# ??# | | ????????????????????????# ! ?# | | ????????????????????????# ?# ######" | | ????????????????????????# # #????## | | ????????????????????????# # #?????? | | ????????????????????????# + #?????? | | ????????????????????????# # #?????? | | ????????????????????????# # #?????? | | ????????????????????????# ?# #?????? | | ????????????????????????# ! ?# #?????? | | ????????????????????????# ??# #?????? | | ????????????????????????# ??# #?????? | | ????????????????????????##########???# #?????? | | ?????????????????????????????????????#w #?????? | | ?????????????????????????????????????# #?????? | | ????????????????????????????????????## #?????? | | ????????????????????????????????????# #?????? | | ????????????????????????????????????#T #????? | | ???????????########################### g" #####/# | | ?????????? g%" *=!% | | ?????????? m l g !=%[% | | ?????????? @ =%! | | ?????????????? """ """"""" w g ! | | ????????????????""" """"""" g g | | ????????????????""" """"""" ##########+######## | | ??????????????? """"""" =#???# #? | | ??????????????? != #???# #? | | ??????????????????""" /]=p##### """"""""" #? | | ??????????????????""" =!!p]/ggg #? | | ??????????????????""" !===!##### """"""""" #? | | ??????????????????""" h=Y%!#???# #? | | ????????????????? h ="=|#???# #? | | ????????????????""""" h Y""Y=#???# """ ?? | | ??????????????????""" " Y G *#???# "R ?? | | ???????????????????"""%" "" #???# """ ! ?? | | ???????????????????"" " " #???# "" #? | | ??????????????????? #???# ?? ?? | | ?????????????????? #???###???#######?? | | ??????????????????#############??????????????????? | | ?????????????????????????????????????????????????? | | ?????????????????????????????????????????????????? | | ?????????????????????????????????????????????????? | | ?????????????????????????????????????????????????? | | ?????????????????????????????????????????????????? | | ?????????????????????????????????????????????????? | | ?????????????????????????????????????????????????? | +----------------------------------------------------+ Best States ------------- Heat Dissipation 48 Energy Generation 21 Energy Capacity 490 Matter Stores 300 Matter Capacity 300 Sight Range 16 Terrain Scan Density 10 Jamming Range 16 Additional Mass Support 6 Armor Coverage 550 Resistance: KI 30 Resistance: EM 25 Melee Speed Boost 50 Evasion (%) 50 Melee Accuracy 5 Target Analysis 5 Recoil Reduction 6 Item Schematics ----------------- Huge Storage Unit | -9/Materials | Hacked Hacking Suite | -6/Factory | Scanalyzed Robot Schematics ------------------ None Fabricated ------------ Nothing Repaired ---------- Nothing Studied --------- Greatsword | -6/Factory | Hacked Alien Tech Used ----------------- None Achievements -------------- None Challenges ------------ None Game ------ Seed ReactionGaussBeacon Manual? 0 Play Time 01:18:32 Cumulative 454.2 hours Start 2026.07.14 @ 09:52:02 End 2026.07.14 @ 11:17:43 Sessions 1 Manual Loads 0 Difficulty Rogue Special Mode None Game No. 417 Rogue 417 Adventurer 0 Explorer 0 Win Type - Total 11 Types 7/0/2/1/0/0/0/0/0/1 Lore% 61 Gallery% 69 Achievement% 65 Wizard Run 0 Options --------- Layout 1 ASCII 0 Keyboard 0 Movement Mouse Keybinds 0 Fullscreen 2 Font 24/Cog Map View 25x17 Zoom Use 12% Tactical HUD 1 Map Filters NONE Filters NONE Steam 1 RUN: 529ae782-3ea9-4043-b3e4-b429bcfd760c